fUST/lending_fUST_20250206
["ID","MTS","AMOUNT","RATE_DAILY","PERIOD"]
[351858433,1738823443380,-500.0,0.00013835,2]
[351858435,1738823443389,-1044.47,0.00013835,2]
[351858436,1738823443399,-2166.13,0.00013835,2]
[351858439,1738823443408,-576.45,0.00013835,2]
[351858441,1738823443418,-500.0,0.00013835,2]
[351858442,1738823443428,-500.0,0.00013835,2]
[351858445,1738823443438,-500.0,0.00013835,2]
[351858447,1738823443448,-500.0,0.00013835,2]
[351858448,1738823443457,-763.77,0.00013835,2]
[351858451,1738823443467,-500.0,0.00013835,2]
[351858452,1738823443476,-732.22,0.00013835,2]
[351858454,1738823443486,-708.41,0.00013835,2]
[351858456,1738823443498,-500.0,0.00013835,2]
[351858458,1738823443508,-500.0,0.00013835,2]
[351858460,1738823443518,-721.71,0.00013835,2]
[351858462,1738823443528,-500.0,0.00013835,2]
[351858464,1738823443538,-500.0,0.00013835,2]
[351858466,1738823443548,-500.0,0.00013835,2]
[351858469,1738823443570,-500.0,0.00013835,2]
[351858471,1738823443580,-900.34,0.00013835,2]
[351858473,1738823443590,-727.66,0.00013835,2]
[351858475,1738823443599,-500.0,0.00013835,2]
[351858476,1738823443609,-661.92,0.00013835,2]
[351858477,1738823443619,-561.44797022,0.00013835,2]
[351858478,1738823443629,-500.0,0.00013835,2]
[351858479,1738823443638,-500.0,0.00013835,2]
[351858480,1738823443647,-500.0,0.00013835,2]
[351858481,1738823443657,-500.0,0.00013835,2]
[351858482,1738823443666,-566.69,0.00013835,2]
[351858483,1738823443675,-513.97,0.00013835,2]
[351858484,1738823443684,-500.0,0.00013835,2]
[351858485,1738823443694,-560.1,0.00013835,2]
[351858486,1738823443703,-500.0,0.00013835,2]
[351858487,1738823443712,-1109.29,0.00013835,2]
[351858488,1738823443722,-908.59,0.00013835,2]
[351858489,1738823443732,-689.76,0.00013835,2]
[351858490,1738823443743,-183.88090678,0.00013835,2]
[351858492,1738823443753,-500.0,0.00013835,2]
[351858494,1738823443763,-500.0,0.00013835,2]
[351858495,1738823443773,-500.0,0.00013835,2]
[351858496,1738823443783,-524.34,0.00013835,2]
[351858497,1738823443793,-500.0,0.00013835,2]
[351858498,1738823443803,-510.37,0.00013835,2]
[351858499,1738823443813,-500.0,0.00013835,2]
[351858500,1738823443823,-500.0,0.00013835,2]
[351858501,1738823443833,-500.0,0.00013835,2]
[351858502,1738823443842,-500.0,0.00013835,2]
[351858503,1738823443852,-500.0,0.00013835,2]
[351858504,1738823443862,-500.0,0.00013835,2]
[351858505,1738823443872,-500.0,0.00013835,2]
[351858506,1738823443882,-500.0,0.00013835,2]
[351858507,1738823443892,-500.0,0.00013835,2]
[351858508,1738823443901,-392.26801688,0.00013835,2]
[351858509,1738823443911,-956.27,0.00013835,2]
[351858510,1738823443921,-500.0,0.00013835,2]
[351858511,1738823443930,-500.0,0.00013835,2]
[351858512,1738823443940,-722.72,0.00013835,2]
[351858513,1738823443950,-500.0,0.00013835,2]
[351858514,1738823443959,-637.61,0.00013835,2]
[351858515,1738823443968,-500.0,0.00013835,2]
[351858516,1738823443978,-500.0,0.00013835,2]
[351858517,1738823443988,-500.0,0.00013835,2]
[351858518,1738823443997,-524.57921838,0.00013835,2]
[351858519,1738823444006,-307.28908995,0.00013835,2]
[351858520,1738823444016,-500.0,0.00013835,2]
[351858522,1738823444026,-500.0,0.00013835,2]
[351858523,1738823444035,-500.0,0.00013835,2]
[351858524,1738823444045,-500.0,0.00013835,2]
[351858525,1738823444055,-1576.56,0.00013835,2]
[351858526,1738823444064,-616.77,0.00013835,2]
[351858528,1738823444074,-500.0,0.00013835,2]
[351858529,1738823444084,-817.64,0.00013835,2]
[351858530,1738823444093,-500.0,0.00013835,2]
[351858531,1738823444103,-500.0,0.00013835,2]
[351858532,1738823444112,-2553.26,0.00013835,2]
[351858533,1738823444121,-1540.4,0.00013835,2]
[351858534,1738823444131,-500.0,0.00013835,2]
[351858535,1738823444141,-500.0,0.00013835,2]
[351858536,1738823444150,-500.0,0.00013835,2]
[351858537,1738823444159,-579.07,0.00013835,2]
[351858538,1738823444169,-701.58,0.00013835,2]
[351858539,1738823444179,-666.21,0.00013835,2]
[351858540,1738823444188,-500.0,0.00013835,2]
[351858541,1738823444198,-914.75,0.00013835,2]
[351858542,1738823444207,-500.0,0.00013835,2]
[351858543,1738823444216,-500.0,0.00013835,2]
[351858544,1738823444227,-500.0,0.00013835,2]
[351858545,1738823444242,-822.12,0.00013835,2]
[351858546,1738823444251,-513.94,0.00013835,2]
[351858547,1738823444260,-5250.06,0.00013835,2]
[351858548,1738823444270,-500.0,0.00013835,2]
[351858549,1738823444281,-500.0,0.00013835,2]
[351858550,1738823444291,-500.0,0.00013835,2]
[351858551,1738823444300,-500.0,0.00013835,2]
[351858552,1738823444311,-720.23,0.00013835,2]
[351858553,1738823444321,-500.0,0.00013835,2]
[351858554,1738823444331,-527.94,0.00013835,2]
[351858555,1738823444341,-5036.76,0.00013835,2]
[351858556,1738823444350,-1531.19,0.00013835,2]
[351858557,1738823444360,-500.0,0.00013835,2]
[351858558,1738823444369,-2835.63,0.00013835,2]
[351858559,1738823444379,-500.0,0.00013835,2]
[351858560,1738823444389,-500.0,0.00013835,2]
[351858561,1738823444400,-869.85,0.00013835,2]
[351858562,1738823444410,-976.83,0.00013835,2]
[351858563,1738823444419,-583.63,0.00013835,2]
[351858564,1738823444430,-859.72,0.00013835,2]
[351858565,1738823444440,-1505.02,0.00013835,2]
[351858566,1738823444449,-500.0,0.00013835,2]
[351858567,1738823444459,-2933.7,0.00013835,2]
[351858568,1738823444469,-1031.4,0.00013835,2]
[351858569,1738823444481,-673.98,0.00013835,2]
[351858570,1738823444492,-500.0,0.00013835,2]
[351858571,1738823444502,-500.0,0.00013835,2]
[351858572,1738823444512,-500.0,0.00013835,2]
[351858573,1738823444522,-500.0,0.00013835,2]
[351858574,1738823444710,-500.0,0.00013835,2]
[351858575,1738823444720,-500.0,0.00013835,2]
[351858576,1738823444730,-500.0,0.00013835,2]
[351858577,1738823444740,-4367.0,0.00013835,2]
[351858578,1738823444749,-691.52,0.00013835,2]
[351858579,1738823444760,-1930.3,0.00013835,2]
[351858580,1738823444771,-500.0,0.00013835,2]
[351858581,1738823444781,-500.0,0.00013835,2]
[351858582,1738823444791,-500.0,0.00013835,2]
[351858583,1738823444800,-23692.33,0.00013835,2]
[351858584,1738823444809,-500.0,0.00013835,2]
[351858585,1738823444819,-500.0,0.00013835,2]
[351858586,1738823444829,-500.0,0.00013835,2]
[351858587,1738823444838,-500.0,0.00013835,2]
[351858588,1738823444848,-500.0,0.00013835,2]
[351858589,1738823444857,-3055.85,0.00013835,2]
[351858590,1738823444867,-500.0,0.00013835,2]
[351858591,1738823444877,-1835.6,0.00013835,2]
[351858592,1738823444887,-620.68,0.00013835,2]
[351858593,1738823444896,-2760.68,0.00013835,2]
[351858594,1738823444905,-500.0,0.00013835,2]
[351858595,1738823444914,-500.0,0.00013835,2]
[351858596,1738823444923,-500.0,0.00013835,2]
[351858597,1738823444932,-4269.42,0.00013835,2]
[351858598,1738823444941,-1341.26,0.00013835,2]
[351858599,1738823444950,-500.0,0.00013835,2]
[351858600,1738823444958,-500.0,0.00013835,2]
[351858601,1738823444967,-500.0,0.00013835,2]
[351858602,1738823444976,-1816.26,0.00013835,2]
[351858603,1738823444986,-9021.02,0.00013835,2]
[351858604,1738823444996,-1552.12,0.00013835,2]
[351858605,1738823445005,-500.0,0.00013835,2]
[351858606,1738823445014,-46049.75,0.00013835,2]
[351858607,1738823445024,-500.0,0.00013835,2]
[351858608,1738823445033,-612.77,0.00013835,2]
[351858609,1738823445041,-500.0,0.00013835,2]
[351858610,1738823445051,-2823.0,0.00013835,2]
[351858611,1738823445061,-527.13,0.00013835,2]
[351858612,1738823445071,-500.0,0.00013835,2]
[351858613,1738823445081,-500.0,0.00013835,2]
[351858614,1738823445090,-508.02,0.00013835,2]
[351858615,1738823445100,-635.34008997,0.00013835,2]
[351858616,1738823445109,-1679.24,0.00013835,2]
[351858617,1738823445119,-500.0,0.00013835,2]
[351858618,1738823445128,-500.0,0.00013835,2]
[351858619,1738823445138,-500.0,0.00013835,2]
[351858620,1738823445148,-1833.37,0.00013835,2]
[351858621,1738823445157,-507.0,0.00013835,2]
[351858622,1738823445167,-500.0,0.00013835,2]
[351858623,1738823445176,-1977.51,0.00013835,2]
[351858624,1738823445185,-500.0,0.00013835,2]
[351858625,1738823445196,-5257.17,0.00013835,2]
[351858626,1738823445206,-500.0,0.00013835,2]
[351858627,1738823445215,-500.0,0.00013835,2]
[351858628,1738823445225,-5743.02,0.00013835,2]
[351858629,1738823445238,-500.0,0.00013835,2]
[351858630,1738823445248,-2369.44,0.00013835,2]
[351858631,1738823445258,-500.0,0.00013835,2]
[351858632,1738823445266,-612.18,0.00013835,2]
[351858633,1738823445276,-608.31,0.00013835,2]
[351858634,1738823445285,-933.19,0.00013835,2]
[351858635,1738823445294,-549.65,0.00013835,2]
[351858636,1738823445303,-500.0,0.00013835,2]
[351858637,1738823445313,-500.0,0.00013835,2]
[351858638,1738823445324,-1796.81,0.00013835,2]
[351858639,1738823445333,-19759.15,0.00013835,2]
[351858640,1738823445342,-803.55,0.00013835,2]
[351858641,1738823445351,-500.0,0.00013835,2]
[351858642,1738823445360,-500.0,0.00013835,2]
[351858643,1738823445369,-500.0,0.00013835,2]
[351858644,1738823445379,-520.35,0.00013835,2]
[351858645,1738823445387,-500.0,0.00013835,2]
[351858646,1738823445398,-500.0,0.00013835,2]
[351858647,1738823445407,-1510.75,0.00013835,2]
[351858648,1738823445416,-1789.04,0.00013835,2]
[351858649,1738823445425,-500.0,0.00013835,2]
[351858650,1738823445434,-404.47801675,0.00013872,2]
[351858651,1738823445443,-208.44833725,0.00013872,2]
[351858652,1738823445452,-208.44833725,0.00013872,2]
[351858653,1738823445461,-208.44833725,0.00013872,2]
[351858654,1738823445470,-208.44833725,0.00013872,2]
[351858655,1738823445479,-208.44833725,0.00013872,2]
[351858656,1738823445489,-208.44833725,0.00013872,2]
[351858657,1738823445498,-208.44833725,0.00013872,2]
[351858658,1738823445507,-208.44833725,0.00013872,2]
[351858659,1738823445516,-208.44833725,0.00013872,2]
[351858660,1738823445526,-208.44833725,0.00013872,2]
[351858661,1738823445536,-208.44833725,0.00013872,2]
[351858662,1738823445545,-208.44833725,0.00013872,2]
[351858663,1738823445555,-208.44833725,0.00013872,2]
[351858664,1738823445564,-208.44833725,0.00013872,2]
[351858665,1738823445573,-208.44833725,0.00013872,2]
[351858666,1738823445583,-208.44833725,0.00013872,2]
[351858667,1738823445593,-208.44833725,0.00013872,2]
[351858668,1738823445602,-208.44833725,0.00013872,2]
[351858669,1738823445611,-208.44833725,0.00013872,2]
[351858670,1738823445622,-208.44,0.00013872,2]
[351858671,1738823445631,-500.0,0.00013931,7]
[351858672,1738823445640,-500.0,0.00013931,7]
[351858673,1738823445650,-500.0,0.00013931,7]
[351858674,1738823445659,-500.0,0.00013931,7]
[351858675,1738823445669,-500.0,0.00013931,7]
[351858676,1738823445678,-500.0,0.00013931,7]
[351858677,1738823445688,-500.0,0.00013931,7]
[351858678,1738823445697,-214.53,0.00013931,7]
[351858679,1738823445706,-420.0,0.00013939,2]
[351858680,1738823445716,-500.0,0.00013972,2]
[351858681,1738823445725,-500.0,0.00013972,2]
[351858682,1738823445735,-500.0,0.00013972,2]
[351858683,1738823445744,-500.0,0.00013972,2]
[351858684,1738823445754,-500.0,0.00013972,2]
[351858685,1738823445763,-500.0,0.00013972,2]
[351858686,1738823445772,-649.33488446,0.00013972,2]
[351858687,1738823445781,-500.0,0.00013972,2]
[351858688,1738823445789,-500.0,0.00013972,2]
[351858689,1738823445799,-500.0,0.00013972,2]
[351858690,1738823445809,-500.0,0.00013972,2]
[351858691,1738823445819,-500.0,0.00013972,2]
[351858692,1738823445828,-500.0,0.00013972,2]
[351858693,1738823445839,-500.0,0.00013972,2]
[351858694,1738823445848,-500.0,0.00013972,2]
[351858695,1738823445858,-500.0,0.00013972,2]
[351858696,1738823445868,-500.0,0.00013972,2]
[351858697,1738823445877,-500.0,0.00013972,2]
[351858698,1738823445887,-500.0,0.00013972,2]
[351858699,1738823445897,-500.0,0.00013972,2]
[351858700,1738823445906,-500.0,0.00013972,2]
[351858701,1738823445916,-500.0,0.00013972,2]
[351858702,1738823445925,-157.178,0.00013972,2]
[351858703,1738823445934,-500.0,0.00013972,2]
[351858704,1738823445944,-500.0,0.00013972,2]
[351858705,1738823445953,-500.0,0.00013972,2]
[351858706,1738823445963,-824.74,0.00013972,2]
[351858707,1738823445973,-500.0,0.00013972,2]
[351858708,1738823445983,-500.0,0.00013972,2]
[351858709,1738823445993,-874.01,0.00013972,2]
[351858710,1738823446003,-500.0,0.00013972,2]
[351858711,1738823446012,-500.0,0.00013972,2]
[351858712,1738823446022,-500.0,0.00013972,2]
[351858713,1738823446032,-611.92,0.00013972,2]
[351858714,1738823446043,-500.0,0.00013972,2]
[351858715,1738823446052,-500.0,0.00013972,2]
[351858716,1738823446062,-500.0,0.00013972,2]
[351858717,1738823446071,-500.0,0.00013972,2]
[351858718,1738823446081,-500.0,0.00013972,2]
[351858719,1738823446091,-500.0,0.00013972,2]
[351858720,1738823446100,-681.84,0.00013972,2]
[351858721,1738823446110,-500.0,0.00013972,2]
[351858722,1738823446120,-500.0,0.00013972,2]
[351858723,1738823446130,-500.0,0.00013972,2]
[351858724,1738823446139,-500.0,0.00013972,2]
[351858725,1738823446149,-1576.04,0.00013972,2]
[351858726,1738823446159,-500.0,0.00013972,2]
[351858727,1738823446169,-500.0,0.00013972,2]
[351858728,1738823446179,-1559.88,0.00013972,2]
[351858729,1738823446189,-500.0,0.00013972,2]
[351858730,1738823446199,-500.0,0.00013972,2]
[351858731,1738823446208,-177.59845825,0.00013972,2]
[351858732,1738823446218,-864.65,0.00013972,2]
[351858733,1738823446227,-500.0,0.00013972,2]
[351858734,1738823446242,-500.0,0.00013972,2]
[351858735,1738823446251,-500.0,0.00013972,2]
[351858736,1738823446261,-418.47896893,0.00013972,2]
[351858737,1738823446271,-502.66172929,0.00013972,2]
[351858738,1738823446280,-521.61857812,0.00013972,2]
[351858739,1738823446290,-500.0,0.00013972,2]
[351858740,1738823446301,-658.6,0.00013972,2]
[351858741,1738823446315,-500.0,0.00013972,2]
[351858742,1738823446325,-500.0,0.00013972,2]
[351858743,1738823446335,-598.3,0.00013972,2]
[351858744,1738823446351,-500.0,0.00013972,2]
[351858745,1738823446365,-500.0,0.00013972,2]
[351858746,1738823446375,-500.0,0.00013972,2]
[351858747,1738823446385,-500.0,0.00013972,2]
[351858748,1738823446394,-1044.47,0.00013972,2]
[351858749,1738823446404,-2166.13,0.00013972,2]
[351858750,1738823446414,-576.45,0.00013972,2]
[351858751,1738823446425,-500.0,0.00013972,2]
[351858752,1738823446436,-500.0,0.00013972,2]
[351858754,1738823446449,-500.0,0.00013972,2]
[351858756,1738823446470,-500.0,0.00013972,2]
[351858757,1738823446492,-763.77,0.00013972,2]
[351858759,1738823446502,-500.0,0.00013972,2]
[351858761,1738823446512,-732.22,0.00013972,2]
[351858762,1738823446521,-708.41,0.00013972,2]
[351858763,1738823446532,-500.0,0.00013972,2]
[351858764,1738823446540,-500.0,0.00013972,2]
[351858765,1738823446550,-721.71,0.00013972,2]
[351858766,1738823446559,-500.0,0.00013972,2]
[351858767,1738823446568,-500.0,0.00013972,2]
[351858768,1738823446578,-500.0,0.00013972,2]
[351858769,1738823446588,-500.0,0.00013972,2]
[351858770,1738823446597,-900.34,0.00013972,2]
[351858771,1738823446607,-727.66,0.00013972,2]
[351858772,1738823446617,-500.0,0.00013972,2]
[351858773,1738823446627,-661.92,0.00013972,2]
[351858774,1738823446636,-500.0,0.00013972,2]
[351858775,1738823446645,-500.0,0.00013972,2]
[351858776,1738823446654,-500.0,0.00013972,2]
[351858777,1738823446663,-500.0,0.00013972,2]
[351858778,1738823446672,-566.69,0.00013972,2]
[351858779,1738823446682,-513.97,0.00013972,2]
[351858780,1738823446691,-500.0,0.00013972,2]
[351858781,1738823446702,-560.1,0.00013972,2]
[351858782,1738823446712,-500.0,0.00013972,2]
[351858783,1738823446721,-1109.29,0.00013972,2]
[351858784,1738823446730,-908.59,0.00013972,2]
[351858785,1738823446740,-689.76,0.00013972,2]
[351858787,1738823446749,-500.0,0.00013972,2]
[351858789,1738823446759,-500.0,0.00013972,2]
[351858790,1738823446768,-500.0,0.00013972,2]
[351858792,1738823446777,-524.34,0.00013972,2]
[351858794,1738823446786,-500.0,0.00013972,2]
[351858796,1738823446796,-510.37,0.00013972,2]
[351858798,1738823446805,-500.0,0.00013972,2]
[351858799,1738823446814,-500.0,0.00013972,2]
[351858800,1738823446824,-500.0,0.00013972,2]
[351858801,1738823446834,-500.0,0.00013972,2]
[351858802,1738823446844,-500.0,0.00013972,2]
[351858803,1738823446854,-329.2187618,0.00013972,2]
[351858804,1738823446863,-500.0,0.00013972,2]
[351858805,1738823446872,-500.0,0.00013972,2]
[351858806,1738823446881,-956.27,0.00013972,2]
[351858807,1738823446891,-500.0,0.00013972,2]
[351858808,1738823446901,-500.0,0.00013972,2]
[351858809,1738823446911,-722.72,0.00013972,2]
[351858810,1738823446921,-500.0,0.00013972,2]
[351858811,1738823446930,-637.61,0.00013972,2]
[351858812,1738823446940,-500.0,0.00013972,2]
[351858813,1738823446949,-500.0,0.00013972,2]
[351858814,1738823446959,-500.0,0.00013972,2]
[351858817,1738823446969,-500.0,0.00013972,2]
[351858820,1738823446979,-500.0,0.00013972,2]
[351858823,1738823446989,-500.0,0.00013972,2]
[351858826,1738823446999,-500.0,0.00013972,2]
[351858828,1738823447015,-1576.56,0.00013972,2]
[351858829,1738823447028,-616.77,0.00013972,2]
[351858830,1738823447038,-500.0,0.00013972,2]
[351858831,1738823447049,-817.64,0.00013972,2]
[351858832,1738823447060,-500.0,0.00013972,2]
[351858833,1738823447070,-500.0,0.00013972,2]
[351858834,1738823447081,-2553.26,0.00013972,2]
[351858835,1738823447091,-1540.4,0.00013972,2]
[351858836,1738823447101,-500.0,0.00013972,2]
[351858837,1738823447111,-500.0,0.00013972,2]
[351858838,1738823447121,-500.0,0.00013972,2]
[351858839,1738823447131,-579.07,0.00013972,2]
[351858840,1738823447140,-701.58,0.00013972,2]
[351858841,1738823447151,-666.21,0.00013972,2]
[351858842,1738823447160,-500.0,0.00013972,2]
[351858843,1738823447170,-914.75,0.00013972,2]
[351858844,1738823447180,-500.0,0.00013972,2]
[351858845,1738823447190,-500.0,0.00013972,2]
[351858846,1738823447200,-500.0,0.00013972,2]
[351858847,1738823447211,-822.12,0.00013972,2]
[351858848,1738823447221,-513.94,0.00013972,2]
[351858849,1738823447234,-5250.06,0.00013972,2]
[351858850,1738823447245,-500.0,0.00013972,2]
[351858851,1738823447256,-500.0,0.00013972,2]
[351858852,1738823447267,-500.0,0.00013972,2]
[351858853,1738823447276,-500.0,0.00013972,2]
[351858854,1738823447286,-720.23,0.00013972,2]
[351858855,1738823447296,-500.0,0.00013972,2]
[351858856,1738823447307,-527.94,0.00013972,2]
[351858857,1738823447319,-5036.76,0.00013972,2]
[351858858,1738823447329,-1531.19,0.00013972,2]
[351858859,1738823447338,-500.0,0.00013972,2]
[351858860,1738823447347,-2835.63,0.00013972,2]
[351858861,1738823447356,-500.0,0.00013972,2]
[351858862,1738823447367,-500.0,0.00013972,2]
[351858863,1738823447376,-869.85,0.00013972,2]
[351858864,1738823447385,-976.83,0.00013972,2]
[351858865,1738823447394,-583.63,0.00013972,2]
[351858866,1738823447403,-859.72,0.00013972,2]
[351858867,1738823447413,-1505.02,0.00013972,2]
[351858868,1738823447423,-500.0,0.00013972,2]
[351858869,1738823447432,-2933.7,0.00013972,2]
[351858870,1738823447442,-1031.4,0.00013972,2]
[351858871,1738823447452,-673.98,0.00013972,2]
[351858872,1738823447462,-500.0,0.00013972,2]
[351858873,1738823447472,-500.0,0.00013972,2]
[351858874,1738823447483,-500.0,0.00013972,2]
[351858875,1738823447493,-500.0,0.00013972,2]
[351858876,1738823447504,-500.0,0.00013972,2]
[351858877,1738823447514,-500.0,0.00013972,2]
[351858878,1738823447525,-500.0,0.00013972,2]
[351858879,1738823447535,-4367.0,0.00013972,2]
[351858880,1738823447544,-691.52,0.00013972,2]
[351858881,1738823447554,-1930.3,0.00013972,2]
[351858882,1738823447564,-500.0,0.00013972,2]
[351858883,1738823447574,-500.0,0.00013972,2]
[351858884,1738823447583,-500.0,0.00013972,2]
[351858885,1738823447593,-23692.33,0.00013972,2]
[351858886,1738823447604,-500.0,0.00013972,2]
[351858887,1738823447614,-500.0,0.00013972,2]
[351858888,1738823447625,-500.0,0.00013972,2]
[351858889,1738823447636,-500.0,0.00013972,2]
[351858890,1738823447646,-500.0,0.00013972,2]
[351858891,1738823447656,-3055.85,0.00013972,2]
[351858892,1738823447667,-500.0,0.00013972,2]
[351858893,1738823447676,-1835.6,0.00013972,2]
[351858894,1738823447686,-620.68,0.00013972,2]
[351858895,1738823447696,-2760.68,0.00013972,2]
[351858896,1738823447706,-500.0,0.00013972,2]
[351858897,1738823447716,-500.0,0.00013972,2]
[351858898,1738823447726,-500.0,0.00013972,2]
[351858899,1738823447736,-4269.42,0.00013972,2]
[351858900,1738823447747,-1341.26,0.00013972,2]
[351858901,1738823447758,-500.0,0.00013972,2]
[351858902,1738823447768,-500.0,0.00013972,2]
[351858903,1738823447778,-500.0,0.00013972,2]
[351858904,1738823447788,-1816.26,0.00013972,2]
[351858905,1738823447799,-9021.02,0.00013972,2]
[351858906,1738823447809,-1552.12,0.00013972,2]
[351858907,1738823447819,-46049.75,0.00013972,2]
[351858908,1738823447830,-500.0,0.00013972,2]
[351858909,1738823447841,-500.0,0.00013972,2]
[351858910,1738823447852,-612.77,0.00013972,2]
[351858911,1738823447862,-500.0,0.00013972,2]
[351858912,1738823447872,-2823.0,0.00013972,2]
[351858913,1738823447883,-527.13,0.00013972,2]
[351858914,1738823447894,-384.0092914,0.00013972,2]
[351858915,1738823447905,-241.65407414,0.00013972,2]
[351858916,1738823447915,-508.02,0.00013972,2]
[351858917,1738823447924,-1679.24,0.00013972,2]
[351858918,1738823447933,-500.0,0.00013972,2]
[351858919,1738823447943,-500.0,0.00013972,2]
[351858920,1738823447953,-500.0,0.00013972,2]
[351858921,1738823447961,-1833.37,0.00013972,2]
[351858922,1738823447970,-507.0,0.00013972,2]
[351858923,1738823447977,-500.0,0.00013972,2]
[351858924,1738823447985,-1977.51,0.00013972,2]
[351858925,1738823447994,-500.0,0.00013972,2]
[351858926,1738823448005,-5257.17,0.00013972,2]
[351858927,1738823448015,-500.0,0.00013972,2]
[351858928,1738823448024,-500.0,0.00013972,2]
[351858929,1738823448035,-5743.02,0.00013972,2]
[351858930,1738823448045,-500.0,0.00013972,2]
[351858931,1738823448055,-2369.44,0.00013972,2]
[351858932,1738823448065,-500.0,0.00013972,2]
[351858933,1738823448075,-612.18,0.00013972,2]
[351858934,1738823448250,-608.31,0.00013972,2]
[351858935,1738823448262,-933.19,0.00013972,2]
[351858936,1738823448273,-549.65,0.00013972,2]
[351858937,1738823448285,-500.0,0.00013972,2]
[351858938,1738823448296,-500.0,0.00013972,2]
[351858939,1738823448307,-1796.81,0.00013972,2]
[351858940,1738823448318,-19759.15,0.00013972,2]
[351858941,1738823448328,-803.55,0.00013972,2]
[351858942,1738823448338,-505.81130679,0.00013972,2]
[351858943,1738823448349,-500.0,0.00013972,2]
[351858944,1738823448360,-500.0,0.00013972,2]
[351858945,1738823448372,-520.35,0.00013972,2]
[351858946,1738823448382,-500.0,0.00013972,2]
[351858947,1738823448393,-500.0,0.00013972,2]
[351858948,1738823448404,-1510.75,0.00013972,2]
[351858949,1738823448415,-1789.04,0.00013972,2]
[351858950,1738823448426,-500.0,0.00013972,2]
[351858951,1738823448437,-400.0,0.00013973,2]
[351858952,1738823448447,-1187.85877043,0.00014009,2]
[351858953,1738823448458,-486.37945359,0.00014009,2]
[351858954,1738823448469,-486.37945359,0.00014009,2]
[351858955,1738823448480,-486.37945359,0.00014009,2]
[351858956,1738823448491,-486.37945359,0.00014009,2]
[351858957,1738823448503,-486.37945359,0.00014009,2]
[351858958,1738823448514,-486.37945359,0.00014009,2]
[351858959,1738823448525,-486.37945359,0.00014009,2]
[351858960,1738823448536,-486.37945359,0.00014009,2]
[351858961,1738823448547,-486.37945359,0.00014009,2]
[351858962,1738823448558,-486.37945359,0.00014009,2]
[351858963,1738823448569,-486.37945359,0.00014009,2]
[351858964,1738823448580,-486.37945359,0.00014009,2]
[351858965,1738823448591,-486.37945359,0.00014009,2]
[351858966,1738823448601,-486.37945359,0.00014009,2]
[351858967,1738823448612,-486.37945359,0.00014009,2]
[351858968,1738823448622,-486.37945359,0.00014009,2]
[351858969,1738823448632,-486.37945359,0.00014009,2]
[351858970,1738823448642,-486.37945359,0.00014009,2]
[351858971,1738823448653,-486.37945359,0.00014009,2]
[351858972,1738823448663,-486.37,0.00014009,2]
[351858973,1738823448674,-537.0,0.00014013,2]
[351858974,1738823448686,-1975.0,0.00014013,2]
[351858975,1738823448697,-2297.0,0.00014013,2]
[351858976,1738823448708,-396.0,0.00014013,2]